[Event "Late-Titled-Tuesday-Blitz-March-19-2024"]
[Site "Chess.com"]
[Date "2024.03.19"]
[Round "4"]
[White "gorgeous1083"]
[Black "Supelyel"]
[Result "0-1"]
[WhiteElo "2062"]
[BlackElo "2392"]
[TimeControl "180+1"]
[EndTime "14:37:24 PDT"]
[Termination "Supelyel won by resignation"]

1. d4 {[%clk 0:03:00.9]} 1... d6 {[%clk 0:02:55.9]} 2. c4 {[%clk 0:03:00]} 2...
Nf6 {[%clk 0:02:55.5]} 3. Nc3 {[%clk 0:03:00.4]} 3... Nbd7 {[%clk 0:02:55.8]} 4.
Nf3 {[%clk 0:03:00]} 4... e5 {[%clk 0:02:55.8]} 5. dxe5 {[%clk 0:02:56.3]} 5...
dxe5 {[%clk 0:02:55.6]} 6. e4 {[%clk 0:02:55.9]} 6... c6 {[%clk 0:02:55.7]} 7.
h3 {[%clk 0:02:51.5]} 7... Be7 {[%clk 0:02:55.4]} 8. Be3 {[%clk 0:02:51.6]} 8...
O-O {[%clk 0:02:55.5]} 9. Be2 {[%clk 0:02:50.6]} 9... Qc7 {[%clk 0:02:54.2]} 10.
O-O {[%clk 0:02:50.6]} 10... Re8 {[%clk 0:02:54.7]} 11. Qc2 {[%clk 0:02:45.4]}
11... a5 {[%clk 0:02:51.6]} 12. b3 {[%clk 0:02:44.5]} 12... Nc5 {[%clk
0:02:47.1]} 13. Rfd1 {[%clk 0:02:39]} 13... h6 {[%clk 0:02:46.9]} 14. Nd2 {[%clk
0:02:31]} 14... Ne6 {[%clk 0:02:34.7]} 15. a3 {[%clk 0:02:22.8]} 15... Nd4
{[%clk 0:02:31.5]} 16. Qb2 {[%clk 0:02:09.2]} 16... c5 {[%clk 0:02:25.1]} 17.
Nd5 {[%clk 0:02:03.7]} 17... Nxe2+ {[%clk 0:02:04.2]} 18. Kf1 {[%clk 0:02:00.1]}
18... Nxd5 {[%clk 0:02:03.6]} 19. cxd5 {[%clk 0:01:43.4]} 19... Nd4 {[%clk
0:01:54.2]} 20. Rac1 {[%clk 0:01:39]} 20... Bd6 {[%clk 0:01:54.3]} 21. b4 {[%clk
0:01:32.1]} 21... axb4 {[%clk 0:01:52.5]} 22. axb4 {[%clk 0:01:32]} 22... b6
{[%clk 0:01:52.9]} 23. Nc4 {[%clk 0:01:27]} 23... Ba6 {[%clk 0:01:49.6]} 24.
Bxd4 {[%clk 0:01:22.2]} 24... Bxc4+ {[%clk 0:01:48.7]} 25. Rxc4 {[%clk
0:01:20.8]} 25... exd4 {[%clk 0:01:48.8]} 26. Rdxd4 {[%clk 0:01:14.3]} 26... Be5
{[%clk 0:01:33.7]} 27. bxc5 {[%clk 0:01:13.4]} 27... Bxd4 {[%clk 0:01:26.9]} 28.
Qxd4 {[%clk 0:01:10.7]} 28... bxc5 {[%clk 0:01:25.7]} 29. Rxc5 {[%clk 0:01:04]}
29... Qh2 {[%clk 0:01:23]} 30. Rc3 {[%clk 0:00:52.3]} 30... Qe5 {[%clk
0:01:12.7]} 31. Qxe5 {[%clk 0:00:49.1]} 31... Rxe5 {[%clk 0:01:12.3]} 32. f3
{[%clk 0:00:47.9]} 32... f5 {[%clk 0:01:12.5]} 33. d6 {[%clk 0:00:27.2]} 33...
Rd8 {[%clk 0:01:11.9]} 0-1

[Event "Late-Titled-Tuesday-Blitz-March-19-2024"]
[Site "Chess.com"]
[Date "2024.03.19"]
[Round "4"]
[White "Boorchess"]
[Black "Charodej1"]
[Result "0-1"]
[WhiteElo "2550"]
[BlackElo "2379"]
[TimeControl "180+1"]
[EndTime "14:37:28 PDT"]
[Termination "Charodej1 won by resignation"]

1. d4 {[%clk 0:03:00.9]} 1... Nf6 {[%clk 0:02:59.6]} 2. c4 {[%clk 0:03:00.2]}
2... e6 {[%clk 0:02:59.5]} 3. g3 {[%clk 0:03:00.2]} 3... d5 {[%clk 0:02:59.1]}
4. Bg2 {[%clk 0:03:00.2]} 4... Be7 {[%clk 0:02:59.5]} 5. Nf3 {[%clk 0:03:00.2]}
5... O-O {[%clk 0:03:00.1]} 6. O-O {[%clk 0:03:00.5]} 6... dxc4 {[%clk
0:03:00.2]} 7. Qc2 {[%clk 0:03:01.1]} 7... a6 {[%clk 0:02:59.3]} 8. a4 {[%clk
0:03:00.7]} 8... Nc6 {[%clk 0:02:58.5]} 9. Qxc4 {[%clk 0:02:58.9]} 9... Bd7
{[%clk 0:02:37.8]} 10. Nc3 {[%clk 0:02:51.7]} 10... b5 {[%clk 0:01:47.2]} 11.
axb5 {[%clk 0:02:40.9]} 11... axb5 {[%clk 0:01:44.4]} 12. Rxa8 {[%clk
0:02:40.6]} 12... bxc4 {[%clk 0:01:37.4]} 13. Rxd8 {[%clk 0:02:39.4]} 13... Rxd8
{[%clk 0:01:36.8]} 14. Ne5 {[%clk 0:02:02]} 14... Nxd4 {[%clk 0:01:28.8]} 15.
Rd1 {[%clk 0:01:59]} 15... Be8 {[%clk 0:01:22.6]} 16. Nxc4 {[%clk 0:01:53.5]}
16... Nxe2+ {[%clk 0:01:19.7]} 17. Kf1 {[%clk 0:01:25.9]} 17... Rxd1+ {[%clk
0:01:17.5]} 18. Nxd1 {[%clk 0:01:23.7]} 18... Nxc1 {[%clk 0:01:17.3]} 19. Ke1
{[%clk 0:01:21.6]} 19... Nd3+ {[%clk 0:01:15.3]} 20. Kd2 {[%clk 0:01:21.2]}
20... Nb4 {[%clk 0:01:14.3]} 21. Nde3 {[%clk 0:01:17.7]} 21... Nbd5 {[%clk
0:01:13]} 22. Nxd5 {[%clk 0:01:14.9]} 22... exd5 {[%clk 0:01:13.1]} 23. Ne5
{[%clk 0:01:14.9]} 23... Bd6 {[%clk 0:01:12.1]} 24. f4 {[%clk 0:01:12.1]} 24...
Bxe5 {[%clk 0:01:10.6]} 25. fxe5 {[%clk 0:01:12.3]} 25... Ne4+ {[%clk 0:01:11]}
26. Ke3 {[%clk 0:01:10.5]} 26... Bc6 {[%clk 0:01:10.4]} 27. Kd4 {[%clk
0:01:09.7]} 27... Kf8 {[%clk 0:01:09.3]} 28. b4 {[%clk 0:01:09.6]} 28... Ke7
{[%clk 0:01:06.8]} 29. b5 {[%clk 0:01:09.4]} 29... Bxb5 {[%clk 0:01:04.1]} 30.
Kxd5 {[%clk 0:01:09.5]} 30... Ng5 {[%clk 0:01:02.3]} 31. Kc5 {[%clk 0:01:08.5]}
31... c6 {[%clk 0:01:01.7]} 32. h4 {[%clk 0:01:07.2]} 32... Ne6+ {[%clk
0:01:00.7]} 33. Kb4 {[%clk 0:01:07.8]} 33... Nd4 {[%clk 0:00:53.7]} 34. Bh3
{[%clk 0:00:54.7]} 34... Nf3 {[%clk 0:00:52.4]} 35. e6 {[%clk 0:00:52.5]} 35...
fxe6 {[%clk 0:00:52.6]} 36. Kc5 {[%clk 0:00:52.1]} 36... Ne5 {[%clk 0:00:51]}
37. Kd4 {[%clk 0:00:50.8]} 37... Kd6 {[%clk 0:00:50.6]} 38. Bg2 {[%clk
0:00:49.8]} 38... c5+ {[%clk 0:00:50.3]} 39. Kc3 {[%clk 0:00:50.1]} 39... h6
{[%clk 0:00:48.1]} 40. Bf1 {[%clk 0:00:50.2]} 40... Bxf1 {[%clk 0:00:47.5]} 0-1

[Event "Late-Titled-Tuesday-Blitz-March-19-2024"]
[Site "Chess.com"]
[Date "2024.03.19"]
[Round "4"]
[White "ChempionBg"]
[Black "stregachess"]
[Result "1/2-1/2"]
[WhiteElo "2337"]
[BlackElo "2019"]
[TimeControl "180+1"]
[EndTime "14:37:33 PDT"]
[Termination "Game drawn by repetition"]

1. d4 {[%clk 0:02:59.8]} 1... Nf6 {[%clk 0:02:59.7]} 2. c4 {[%clk 0:02:59.6]}
2... e5 {[%clk 0:02:59.5]} 3. dxe5 {[%clk 0:02:58.4]} 3... Ne4 {[%clk
0:02:59.8]} 4. Nf3 {[%clk 0:02:55.4]} 4... Bb4+ {[%clk 0:02:59.7]} 5. Nbd2
{[%clk 0:02:53.8]} 5... Nc6 {[%clk 0:02:59.7]} 6. a3 {[%clk 0:02:52.4]} 6...
Bxd2+ {[%clk 0:02:59.9]} 7. Bxd2 {[%clk 0:02:50]} 7... Nxd2 {[%clk 0:02:59.9]}
8. Qxd2 {[%clk 0:02:50.3]} 8... Qe7 {[%clk 0:03:00.5]} 9. Qd5 {[%clk 0:02:46.7]}
9... O-O {[%clk 0:02:57.4]} 10. e3 {[%clk 0:02:46]} 10... Re8 {[%clk 0:02:57.8]}
11. Bd3 {[%clk 0:02:36.2]} 11... Nxe5 {[%clk 0:02:54.1]} 12. Nxe5 {[%clk
0:02:23.4]} 12... Qxe5 {[%clk 0:02:54.2]} 13. Qxe5 {[%clk 0:02:19.5]} 13... Rxe5
{[%clk 0:02:53.5]} 14. O-O {[%clk 0:02:18.9]} 14... a5 {[%clk 0:02:51.6]} 15. b4
{[%clk 0:02:17.5]} 15... d6 {[%clk 0:02:42.7]} 16. Rfe1 {[%clk 0:02:11.6]} 16...
g6 {[%clk 0:02:34.7]} 17. f4 {[%clk 0:02:10]} 17... Re7 {[%clk 0:02:34.7]} 18.
e4 {[%clk 0:02:09]} 18... Bd7 {[%clk 0:02:34.1]} 19. Kf2 {[%clk 0:02:05.1]}
19... Kg7 {[%clk 0:02:31]} 20. Ke3 {[%clk 0:01:58]} 20... f5 {[%clk 0:02:25.2]}
21. Kd4 {[%clk 0:01:57.7]} 21... fxe4 {[%clk 0:02:25.1]} 22. Bxe4 {[%clk
0:01:48.6]} 22... axb4 {[%clk 0:02:16.5]} 23. axb4 {[%clk 0:01:48.1]} 23... Rxa1
{[%clk 0:02:11]} 24. Rxa1 {[%clk 0:01:46.6]} 24... b6 {[%clk 0:02:01.7]} 25. Ra7
{[%clk 0:01:38.6]} 25... c5+ {[%clk 0:01:47]} 26. bxc5 {[%clk 0:01:37.3]} 26...
dxc5+ {[%clk 0:01:47.1]} 27. Kd3 {[%clk 0:01:34.6]} 27... Kf8 {[%clk 0:01:24.1]}
28. Rb7 {[%clk 0:01:29.9]} 28... Be6 {[%clk 0:01:21.2]} 29. Rxb6 {[%clk
0:01:26.6]} 29... Bxc4+ {[%clk 0:01:21.1]} 30. Kxc4 {[%clk 0:01:09.5]} 30...
Rxe4+ {[%clk 0:01:20.9]} 31. Kxc5 {[%clk 0:01:09.5]} 31... Rxf4 {[%clk
0:01:21.1]} 32. Rb2 {[%clk 0:01:07.2]} 32... Re4 {[%clk 0:01:17.8]} 33. Kd5
{[%clk 0:01:07.2]} 33... Re1 {[%clk 0:01:17.4]} 34. g3 {[%clk 0:01:05.1]} 34...
Kf7 {[%clk 0:01:17]} 35. Rf2+ {[%clk 0:01:04.7]} 35... Kg7 {[%clk 0:01:16.5]}
36. Kd6 {[%clk 0:01:03.8]} 36... h5 {[%clk 0:01:15.2]} 37. Kd5 {[%clk
0:01:02.8]} 37... Re3 {[%clk 0:01:15.2]} 38. Kd4 {[%clk 0:01:02.7]} 38... Re7
{[%clk 0:01:14.9]} 39. Kd3 {[%clk 0:01:01.7]} 39... Re1 {[%clk 0:01:12.8]} 40.
Ra2 {[%clk 0:00:58.1]} 40... Kh6 {[%clk 0:01:07.8]} 41. Kd2 {[%clk 0:00:54.7]}
41... Re5 {[%clk 0:01:04.8]} 42. Kd3 {[%clk 0:00:53.6]} 42... Re1 {[%clk
0:01:04.2]} 43. Ra5 {[%clk 0:00:50.3]} 43... Rh1 {[%clk 0:00:58.1]} 44. Ra2
{[%clk 0:00:48.6]} 44... Re1 {[%clk 0:00:58.2]} 1/2-1/2

[Event "Late-Titled-Tuesday-Blitz-March-19-2024"]
[Site "Chess.com"]
[Date "2024.03.19"]
[Round "4"]
[White "Cambek64"]
[Black "SocoLoco"]
[Result "1-0"]
[WhiteElo "2504"]
[BlackElo "2164"]
[TimeControl "180+1"]
[EndTime "14:37:34 PDT"]
[Termination "Cambek64 won by checkmate"]

1. e4 {[%clk 0:02:59.7]} 1... c5 {[%clk 0:02:59.2]} 2. Nf3 {[%clk 0:02:59.7]}
2... e6 {[%clk 0:02:59.2]} 3. d3 {[%clk 0:02:59.4]} 3... d5 {[%clk 0:02:57.1]}
4. Nbd2 {[%clk 0:02:59.9]} 4... f5 {[%clk 0:02:55.8]} 5. exf5 {[%clk 0:02:57.6]}
5... exf5 {[%clk 0:02:56.7]} 6. g3 {[%clk 0:02:54.7]} 6... Nf6 {[%clk
0:02:56.6]} 7. Bg2 {[%clk 0:02:55.1]} 7... Be7 {[%clk 0:02:55.8]} 8. O-O {[%clk
0:02:55.3]} 8... O-O {[%clk 0:02:55.5]} 9. Re1 {[%clk 0:02:54.3]} 9... Nc6
{[%clk 0:02:55.1]} 10. Nf1 {[%clk 0:02:53.8]} 10... h6 {[%clk 0:02:54]} 11. h4
{[%clk 0:02:45.9]} 11... Re8 {[%clk 0:02:53.5]} 12. c3 {[%clk 0:02:46.4]} 12...
Bd7 {[%clk 0:02:50.9]} 13. Bf4 {[%clk 0:02:46.8]} 13... Qb6 {[%clk 0:02:48.6]}
14. Qc2 {[%clk 0:02:43.8]} 14... Bf8 {[%clk 0:02:42.5]} 15. Ne3 {[%clk
0:02:29.2]} 15... Rac8 {[%clk 0:02:01.2]} 16. c4 {[%clk 0:02:28.4]} 16... Nb4
{[%clk 0:01:50.3]} 17. Qb3 {[%clk 0:02:26.4]} 17... d4 {[%clk 0:01:42.9]} 18.
Nc2 {[%clk 0:02:06.6]} 18... Nxc2 {[%clk 0:01:17.6]} 19. Qxc2 {[%clk 0:02:05.2]}
19... Bd6 {[%clk 0:01:14.2]} 20. Qd2 {[%clk 0:01:52.2]} 20... Qc7 {[%clk
0:01:03.5]} 21. Bxd6 {[%clk 0:01:50.2]} 21... Qxd6 {[%clk 0:01:01.8]} 22. a3
{[%clk 0:01:46.6]} 22... Bc6 {[%clk 0:00:58.5]} 23. b4 {[%clk 0:01:46.3]} 23...
b6 {[%clk 0:00:56]} 24. b5 {[%clk 0:01:45.8]} 24... Bb7 {[%clk 0:00:51.3]} 25.
a4 {[%clk 0:01:46.3]} 25... Ng4 {[%clk 0:00:21.5]} 26. a5 {[%clk 0:01:41.3]}
26... Ne5 {[%clk 0:00:20.1]} 27. Nxe5 {[%clk 0:01:37.6]} 27... Bxg2 {[%clk
0:00:21]} 28. Kxg2 {[%clk 0:01:25.3]} 28... Rxe5 {[%clk 0:00:20.4]} 29. Rxe5
{[%clk 0:01:23.3]} 29... Qxe5 {[%clk 0:00:21.3]} 30. Re1 {[%clk 0:01:22.9]}
30... Qd6 {[%clk 0:00:20.5]} 31. a6 {[%clk 0:01:23]} 31... Kf7 {[%clk 0:00:17]}
32. Qe2 {[%clk 0:01:22.9]} 32... Rc7 {[%clk 0:00:16.5]} 33. Qf3 {[%clk
0:01:23.4]} 33... Qf6 {[%clk 0:00:11.9]} 34. Qd5+ {[%clk 0:01:22.2]} 34... Kf8
{[%clk 0:00:08.7]} 35. Qa8+ {[%clk 0:01:22.1]} 35... Kf7 {[%clk 0:00:07.9]} 36.
Qe8# {[%clk 0:01:22.6]} 1-0

[Event "Late-Titled-Tuesday-Blitz-March-19-2024"]
[Site "Chess.com"]
[Date "2024.03.19"]
[Round "4"]
[White "hell3raiser"]
[Black "Truequitos"]
[Result "0-1"]
[WhiteElo "2333"]
[BlackElo "2552"]
[TimeControl "180+1"]
[EndTime "14:37:40 PDT"]
[Termination "Truequitos won by resignation"]

1. e4 {[%clk 0:03:00.9]} 1... e6 {[%clk 0:03:00.1]} 2. d4 {[%clk 0:03:00.5]}
2... d5 {[%clk 0:03:00.4]} 3. Nd2 {[%clk 0:03:00.8]} 3... c5 {[%clk 0:03:00.1]}
4. exd5 {[%clk 0:02:59.8]} 4... Qxd5 {[%clk 0:03:00.8]} 5. dxc5 {[%clk
0:02:59.1]} 5... Nf6 {[%clk 0:03:00.3]} 6. Ngf3 {[%clk 0:02:59.3]} 6... Bxc5
{[%clk 0:03:00.4]} 7. Bd3 {[%clk 0:02:57.6]} 7... O-O {[%clk 0:02:59.2]} 8. O-O
{[%clk 0:02:57.4]} 8... Nc6 {[%clk 0:02:59]} 9. Qe2 {[%clk 0:02:51.3]} 9... Qh5
{[%clk 0:02:55.8]} 10. Ne4 {[%clk 0:02:48.7]} 10... Nxe4 {[%clk 0:02:50.6]} 11.
Qxe4 {[%clk 0:02:48.3]} 11... Nb4 {[%clk 0:02:40.3]} 12. Bf4 {[%clk 0:02:40.5]}
12... Nxd3 {[%clk 0:02:39.2]} 13. Qxd3 {[%clk 0:02:39.7]} 13... Be7 {[%clk
0:02:24.6]} 14. Rad1 {[%clk 0:02:31.5]} 14... h6 {[%clk 0:02:13]} 15. Be5 {[%clk
0:02:20.7]} 15... Rd8 {[%clk 0:02:10.4]} 16. Qxd8+ {[%clk 0:02:16.2]} 16... Bxd8
{[%clk 0:02:11.3]} 17. Rxd8+ {[%clk 0:02:16.4]} 17... Kh7 {[%clk 0:02:12.1]} 18.
Rfd1 {[%clk 0:01:58.8]} 18... b6 {[%clk 0:02:12.1]} 19. Bc3 {[%clk 0:01:31.7]}
19... Bb7 {[%clk 0:02:08.6]} 20. Rxa8 {[%clk 0:01:31.3]} 20... Bxa8 {[%clk
0:02:08.9]} 21. Rd3 {[%clk 0:01:30.1]} 21... Be4 {[%clk 0:02:04.9]} 22. Re3
{[%clk 0:01:27.7]} 22... Bxc2 {[%clk 0:02:04.7]} 23. h3 {[%clk 0:01:27.8]} 23...
Bb1 {[%clk 0:01:59.9]} 24. Ne5 {[%clk 0:01:27.9]} 24... Bxa2 {[%clk 0:01:51]}
25. Rg3 {[%clk 0:01:27.8]} 25... Bd5 {[%clk 0:01:35.8]} 26. Nd7 {[%clk 0:01:18]}
26... Qd1+ {[%clk 0:00:45]} 27. Kh2 {[%clk 0:01:17.1]} 27... g5 {[%clk
0:00:45.9]} 28. h4 {[%clk 0:01:14.5]} 28... Kg6 {[%clk 0:00:37.9]} 29. Ne5+
{[%clk 0:01:04.6]} 29... Kf5 {[%clk 0:00:31.9]} 30. hxg5 {[%clk 0:00:58.6]}
30... hxg5 {[%clk 0:00:27.6]} 31. Nxf7 {[%clk 0:00:58.6]} 31... Qh5+ {[%clk
0:00:27.6]} 32. Kg1 {[%clk 0:00:58.5]} 32... Qxf7 {[%clk 0:00:26.9]} 0-1

[Event "Late-Titled-Tuesday-Blitz-March-19-2024"]
[Site "Chess.com"]
[Date "2024.03.19"]
[Round "4"]
[White "flawian2008"]
[Black "ninguno46"]
[Result "1/2-1/2"]
[WhiteElo "2341"]
[BlackElo "2535"]
[TimeControl "180+1"]
[EndTime "14:37:43 PDT"]
[Termination "Game drawn by repetition"]

1. d4 {[%clk 0:03:00.9]} 1... Nf6 {[%clk 0:02:58.9]} 2. c4 {[%clk 0:02:59.8]}
2... g6 {[%clk 0:02:58.6]} 3. Nc3 {[%clk 0:02:59.3]} 3... d5 {[%clk 0:02:58.7]}
4. cxd5 {[%clk 0:02:58.7]} 4... Nxd5 {[%clk 0:02:58.4]} 5. e4 {[%clk 0:02:58.9]}
5... Nxc3 {[%clk 0:02:58.2]} 6. bxc3 {[%clk 0:02:59.5]} 6... Bg7 {[%clk
0:02:58.4]} 7. Qa4+ {[%clk 0:02:58]} 7... Nd7 {[%clk 0:02:56.5]} 8. Nf3 {[%clk
0:02:55]} 8... O-O {[%clk 0:02:55.6]} 9. Be3 {[%clk 0:02:53.4]} 9... c5 {[%clk
0:02:44.1]} 10. Be2 {[%clk 0:02:35.9]} 10... e6 {[%clk 0:02:38.1]} 11. O-O
{[%clk 0:02:33.3]} 11... b6 {[%clk 0:02:37.4]} 12. Rfd1 {[%clk 0:02:29.7]} 12...
Qc7 {[%clk 0:02:36.2]} 13. Rac1 {[%clk 0:02:22.9]} 13... Bb7 {[%clk 0:02:24.8]}
14. d5 {[%clk 0:02:22]} 14... exd5 {[%clk 0:02:24.4]} 15. exd5 {[%clk
0:02:22.6]} 15... Qd6 {[%clk 0:02:24.6]} 16. Bf4 {[%clk 0:02:13.8]} 16... Ne5
{[%clk 0:02:20.6]} 17. Nxe5 {[%clk 0:01:50.3]} 17... Bxe5 {[%clk 0:02:19.8]} 18.
Bxe5 {[%clk 0:01:51.2]} 18... Qxe5 {[%clk 0:02:20]} 19. Bf3 {[%clk 0:01:51.4]}
19... Rfd8 {[%clk 0:02:13.7]} 20. c4 {[%clk 0:01:50.9]} 20... Qf6 {[%clk
0:02:00.8]} 21. Re1 {[%clk 0:01:48.9]} 21... Kg7 {[%clk 0:01:57.4]} 22. Re4
{[%clk 0:01:45.1]} 22... Bc8 {[%clk 0:01:54.6]} 23. Rce1 {[%clk 0:01:44.4]}
23... Bf5 {[%clk 0:01:54.3]} 24. Re7 {[%clk 0:01:44.5]} 24... a6 {[%clk
0:01:44.9]} 25. Qb3 {[%clk 0:01:36.6]} 25... b5 {[%clk 0:01:42]} 26. cxb5 {[%clk
0:01:34.5]} 26... axb5 {[%clk 0:01:41.9]} 27. Qxb5 {[%clk 0:01:29.4]} 27... Rxa2
{[%clk 0:01:41.1]} 28. Qxc5 {[%clk 0:01:28.6]} 28... Ra1 {[%clk 0:01:41]} 29. h3
{[%clk 0:01:23.2]} 29... Rc8 {[%clk 0:01:38.1]} 30. Qb4 {[%clk 0:01:16.4]} 30...
Rcc1 {[%clk 0:01:31.3]} 31. Rxc1 {[%clk 0:01:13.8]} 31... Rxc1+ {[%clk
0:01:30.7]} 32. Re1 {[%clk 0:01:14.5]} 32... Rc2 {[%clk 0:01:24.3]} 33. Rd1
{[%clk 0:01:12.7]} 33... Bxh3 {[%clk 0:01:19.9]} 34. d6 {[%clk 0:01:08.4]} 34...
Bd7 {[%clk 0:01:18.1]} 35. Qb7 {[%clk 0:01:07.9]} 35... Qf5 {[%clk 0:01:07.5]}
36. Be4 {[%clk 0:01:01.6]} 36... Qxf2+ {[%clk 0:01:06.5]} 37. Kh1 {[%clk
0:00:59.7]} 37... Qh4+ {[%clk 0:00:38]} 38. Kg1 {[%clk 0:00:59.1]} 38... Qf2+
{[%clk 0:00:29.7]} 39. Kh1 {[%clk 0:00:59.3]} 39... Qh4+ {[%clk 0:00:30.2]} 40.
Kg1 {[%clk 0:00:59.6]} 40... Qf2+ {[%clk 0:00:31.1]} 1/2-1/2

[Event "Late-Titled-Tuesday-Blitz-March-19-2024"]
[Site "Chess.com"]
[Date "2024.03.19"]
[Round "4"]
[White "MoldyTofu"]
[Black "Fore_Man"]
[Result "1-0"]
[WhiteElo "2084"]
[BlackElo "2287"]
[TimeControl "180+1"]
[EndTime "14:37:51 PDT"]
[Termination "MoldyTofu won on time"]

1. b3 {[%clk 0:03:00.9]} 1... e5 {[%clk 0:02:59]} 2. Bb2 {[%clk 0:03:01.5]} 2...
Nc6 {[%clk 0:02:59.4]} 3. e3 {[%clk 0:03:02.3]} 3... Nf6 {[%clk 0:02:59.8]} 4.
d4 {[%clk 0:03:03.2]} 4... exd4 {[%clk 0:02:58.3]} 5. exd4 {[%clk 0:03:04.1]}
5... d5 {[%clk 0:02:58.5]} 6. Nf3 {[%clk 0:03:04.7]} 6... Bf5 {[%clk 0:02:59]}
7. Bd3 {[%clk 0:03:03.8]} 7... Bxd3 {[%clk 0:02:58.4]} 8. Qxd3 {[%clk
0:03:03.7]} 8... Bd6 {[%clk 0:02:59.3]} 9. O-O {[%clk 0:03:04.2]} 9... O-O
{[%clk 0:02:58.7]} 10. h3 {[%clk 0:03:04.3]} 10... Re8 {[%clk 0:02:58.5]} 11.
Nbd2 {[%clk 0:03:03.5]} 11... Ne4 {[%clk 0:02:57.3]} 12. Rfe1 {[%clk 0:03:00.2]}
12... f5 {[%clk 0:02:51]} 13. a3 {[%clk 0:02:50.5]} 13... Qf6 {[%clk 0:02:45.4]}
14. c4 {[%clk 0:02:41.2]} 14... dxc4 {[%clk 0:02:43.9]} 15. bxc4 {[%clk
0:02:42.1]} 15... Qg6 {[%clk 0:02:26.1]} 16. Nh4 {[%clk 0:02:20.7]} 16... Qg5
{[%clk 0:02:18]} 17. Nxe4 {[%clk 0:02:14.8]} 17... fxe4 {[%clk 0:01:38.2]} 18.
Rxe4 {[%clk 0:02:11.8]} 18... Rxe4 {[%clk 0:01:38.6]} 19. Qxe4 {[%clk
0:02:11.6]} 19... Qd2 {[%clk 0:01:39.5]} 20. Rb1 {[%clk 0:01:44]} 20... Rf8
{[%clk 0:01:35.9]} 21. Nf3 {[%clk 0:01:32.5]} 21... Qa5 {[%clk 0:01:19.1]} 22.
c5 {[%clk 0:01:28.9]} 22... Bf4 {[%clk 0:01:14.3]} 23. d5 {[%clk 0:01:17.3]}
23... Nd8 {[%clk 0:01:13.8]} 24. Qd4 {[%clk 0:01:11.2]} 24... Bh6 {[%clk
0:01:10]} 25. Ne5 {[%clk 0:01:09]} 25... Rf4 {[%clk 0:01:00.4]} 26. Qc3 {[%clk
0:00:46.7]} 1-0

[Event "Late-Titled-Tuesday-Blitz-March-19-2024"]
[Site "Chess.com"]
[Date "2024.03.19"]
[Round "4"]
[White "BardArtem"]
[Black "masnyszachistaaa"]
[Result "1-0"]
[WhiteElo "2745"]
[BlackElo "2565"]
[TimeControl "180+1"]
[EndTime "14:37:52 PDT"]
[Termination "BardArtem won by resignation"]

1. e4 {[%clk 0:03:00.9]} 1... e5 {[%clk 0:02:52.2]} 2. d4 {[%clk 0:02:55.7]}
2... exd4 {[%clk 0:02:48.3]} 3. Qxd4 {[%clk 0:02:56.6]} 3... Nc6 {[%clk
0:02:45.8]} 4. Qd3 {[%clk 0:02:56]} 4... Nf6 {[%clk 0:02:43.2]} 5. Nc3 {[%clk
0:02:54.1]} 5... Bb4 {[%clk 0:02:42.3]} 6. Ne2 {[%clk 0:02:53.5]} 6... O-O
{[%clk 0:02:38.7]} 7. Bd2 {[%clk 0:02:53.5]} 7... d6 {[%clk 0:02:28.6]} 8. O-O-O
{[%clk 0:02:49.8]} 8... Re8 {[%clk 0:02:17.2]} 9. Bg5 {[%clk 0:02:49.2]} 9... h6
{[%clk 0:02:09.5]} 10. Bxf6 {[%clk 0:02:46.8]} 10... Qxf6 {[%clk 0:02:10.4]} 11.
Nd5 {[%clk 0:02:46.7]} 11... Qd8 {[%clk 0:02:10.2]} 12. Nxb4 {[%clk 0:02:47.1]}
12... Nxb4 {[%clk 0:02:11.1]} 13. Qd2 {[%clk 0:02:46.2]} 13... a5 {[%clk
0:01:58.5]} 14. a3 {[%clk 0:02:43.4]} 14... Nc6 {[%clk 0:01:53.8]} 15. Nc3
{[%clk 0:02:43.2]} 15... Be6 {[%clk 0:01:52.4]} 16. Bb5 {[%clk 0:02:37.2]} 16...
Bd7 {[%clk 0:01:32.4]} 17. f4 {[%clk 0:02:29.3]} 17... Ne7 {[%clk 0:01:30.1]}
18. Bc4 {[%clk 0:02:24.4]} 18... Be6 {[%clk 0:01:15.8]} 19. Bd3 {[%clk
0:02:23.5]} 19... Nc6 {[%clk 0:00:57.2]} 20. Rhg1 {[%clk 0:02:18.2]} 20... Nd4
{[%clk 0:00:46.2]} 21. Qf2 {[%clk 0:02:11.5]} 21... c5 {[%clk 0:00:36.7]} 22. g4
{[%clk 0:02:09.4]} 22... Rb8 {[%clk 0:00:28.3]} 23. h4 {[%clk 0:01:53.2]} 23...
b5 {[%clk 0:00:27.4]} 24. f5 {[%clk 0:01:53.7]} 24... Bd7 {[%clk 0:00:18.9]} 25.
g5 {[%clk 0:01:53.7]} 25... h5 {[%clk 0:00:16.7]} 26. g6 {[%clk 0:01:50.5]}
26... f6 {[%clk 0:00:16.7]} 27. Ne2 {[%clk 0:01:46.5]} 27... Qb6 {[%clk
0:00:03.7]} 28. Nxd4 {[%clk 0:01:46.3]} 28... cxd4 {[%clk 0:00:04.6]} 29. Qe2
{[%clk 0:01:45.8]} 29... b4 {[%clk 0:00:04.5]} 30. a4 {[%clk 0:01:43.5]} 30...
d5 {[%clk 0:00:02.4]} 31. Qxh5 {[%clk 0:01:42.8]} 31... Bxa4 {[%clk 0:00:02.1]}
32. exd5 {[%clk 0:01:25.3]} 32... b3 {[%clk 0:00:01.8]} 33. Rde1 {[%clk
0:01:22.9]} 33... Re5 {[%clk 0:00:02.4]} 34. Qh7+ {[%clk 0:01:16.4]} 34... Kf8
{[%clk 0:00:02.6]} 35. Rxe5 {[%clk 0:01:13.6]} 35... fxe5 {[%clk 0:00:02.4]} 36.
f6 {[%clk 0:01:14.5]} 36... Qxf6 {[%clk 0:00:02]} 37. Rf1 {[%clk 0:01:13]} 37...
Qxf1+ {[%clk 0:00:02.2]} 38. Bxf1 {[%clk 0:01:13.9]} 38... bxc2 {[%clk
0:00:02.7]} 39. Qh8+ {[%clk 0:01:13.7]} 39... Ke7 {[%clk 0:00:03.2]} 40. Qxb8
{[%clk 0:01:14.6]} 1-0